Cogmind - Beta 16 @@@ ROGUE MODE // 2025.11.14 @ 02:01:09 Player: AlcoholicAardvark Result: Destroyed by Y-54 Guardian with Flak Gun Performance ------------- Evolutions (3) 1500 Regions Visited (5) 1000 Robots Destroyed (51) 255 Value Destroyed (1812) 1812 Prototype IDs (2) 40 Alien Tech Used (0) 0 Bonus (0) 0 TOTAL SCORE: 4607 Bonus ------- None Cogmind --------- Core Integrity 0/700 Matter 127/300 Energy 80/100 System Corruption 12% Temperature Cool (12) Movement Core (250) Ox4 Location -7/Storage Parts ------- > --- POWER (3) -------- (None) > --- PROPULSION (3) --- (None) > --- UTILITY (4) ------ (None) > --- WEAPON (3) ------- Plasma Cannon Plasma Cannon > --- INVENTORY (5) ---- Improved Heat Sink Peak State ------------ > --- POWER ------------ Light Deuterium Engine Micro Nuclear Core > --- PROPULSION ------- Improved Airjet Improved Airjet Improved Airjet > --- UTILITY ---------- ECM Suite Medium Insulated Plating Hacking Suite Recalibrator > --- WEAPON ----------- Arc Projector Gauss Cannon Great Axe > --- INVENTORY -------- Improved Heat Sink [Rating: 46] Favorites ----------- Power Micro Nuclear Core Engine Ion Engine Power Core Micro Nuclear Core Propulsion Light Treads Treads Light Treads Wheel Wheel Hover Unit Improved Airjet Utility ECM Suite Device ECM Suite Storage Large Storage Unit Hackware Hacking Suite Protection Core Shielding Weapon Gauss Cannon Energy Gun Medium Laser Energy Cannon Plasma Cannon Ballistic Gun Assault Rifle Ballistic Cannon Gauss Cannon Launcher Rocket Launcher Special Weapon Remote Datajack Slashing Weapon Great Axe Build | -11 -10 -9 -8 -7 -7 ------- Run | Yrd Mat Mat Mat Fac Sto Slots Evolved 6 | . . 2 2 2 . Power 2 | . . . 1 1 . Propulsion 1 | . . . 1 . . Utility 2 | . . 1 . 1 . Weapon 1 | . . 1 . . . Parts Attached 53 | 5 5 6 10 12 15 Power 9 | 1 1 . 2 2 3 Engine 5 | 1 1 . . 2 1 Core 4 | . . . 2 . 2 Reactor . | . . . . . . Propulsion 14 | 2 . 2 2 3 5 Treads 9 | 2 . 2 2 1 2 Leg . | . . . . . . Wheel 2 | . . . . 2 . Hover 3 | . . . . . 3 Flight . | . . . . . . Utility 13 | . 3 1 3 4 2 Device 6 | . 1 1 1 1 2 Storage 1 | . 1 . . . . Processor . | . . . . . . Hackware 1 | . . . . 1 . Protection 5 | . 1 . 2 2 . Artifact . | . . . . . . Weapon 17 | 2 1 3 3 3 5 Energy Gun 3 | 1 1 . . 1 . Energy Cannon 2 | . . . . . 2 Ballistic Gun 4 | 1 . 1 . . 2 Ballistic Cannon 3 | . . . 2 1 . Launcher 3 | . . 2 1 . . Special Weapon 1 | . . . . . 1 Impact Weapon . | . . . . . . Slashing Weapon 1 | . . . . 1 . Piercing Weapon . | . . . . . . Special Melee Weapon . | . . . . . . Unidentified Prototypes 2 | . . . 1 . 1 Parts Lost 41 | . 2 2 7 10 20 Power 8 | . 1 . . 3 4 Propulsion 11 | . 1 1 2 2 5 Utility 9 | . . . 1 3 5 Weapon 13 | . . 1 4 2 6 Highest Loss Streak 7 | . 1 1 3 4 7 To Critical Strikes . | . . . . . . Average Backups 3 | . 3 3 4 5 1 Power . | . . . . 1 . Propulsion . | . . . . . . Utility 2 | . 2 3 3 3 1 Weapon . | . . . . . . Tool/Special . | . . . . . . Unused Backups 1 | . . . 1 . . Power . | . . . . . . Propulsion . | . . . . . . Utility 1 | . . . 1 . . Weapon . | . . . . . . Tool/Special . | . . . . . . Average Slot Usage (%) 80 | . 88 94 88 71 63 Engine 6 | . 12 11 1 6 5 Core 7 | . . . 15 10 4 Treads 15 | . 21 19 24 5 2 Hover 1 | . . . . . 12 Device 12 | . 8 22 12 11 14 Protection 10 | . 12 11 10 13 3 Energy Gun 7 | . 22 10 4 . 2 Ballistic Gun 2 | . 3 8 3 . 3 Ballistic Cannon 6 | . . . 4 18 2 Launcher 4 | . . 10 12 . . Slashing Weapon 1 | . . . . . 6 Peak Build Rating 46 | 5 7 12 32 38 46 Average Rating 20 | 3 6 10 23 29 29 On Entrance 13 | . 5 6 12 30 30 Avg Prop Armor Cover (%) 7 | . . . . 7 7 Naked Turns . | . . . . . . Heaviest Build 58 | 7 30 20 43 58 38 Greatest Support 65 | 40 40 43 65 42 40 Greatest Overweight (x) 19 | . . . 1 19 4 Average Overweight (x) . | . . . . 3 1 Largest Inventory Capacity 15 | 5 15 5 5 5 5 Average Capacity 5 | 5 8 5 5 5 5 Most Carried 5 | 1 5 5 5 5 5 Average Carried 3 | . 3 3 4 5 1 Final Capacity 5 | 5 5 5 5 5 5 Final Carried 5 | 1 5 4 5 5 1 Class Distribution -------------------- 52% | Mutant 47% | Tank Dominant Class ---------------- Mutant | -10/Materials Tank | -9/Materials Tank | -8/Materials Tank | -7/Factory Mutant | -7/Storage Resources | -11 -10 -9 -8 -7 -7 ----------- Run | Yrd Mat Mat Mat Fac Sto Matter Collected 1454 | 142 197 144 368 245 358 Remotely . | . . . . . . Salvage Created 1759 | . 386 232 568 146 427 Parts 89 | . 15 10 29 11 24 Haulers Intercepted 1 | . . . 1 . . Recyclers Shooed . | . . . . . . Parts Field Recycled . | . . . . . . Retrieved Matter . | . . . . . . Parts Self-Destructed . | . . . . . . Prevented . | . . . . . . Parts Restored . | . . . . . . Kills | -11 -10 -9 -8 -7 -7 ------- Run | Yrd Mat Mat Mat Fac Sto Combat Hostiles Destroyed 36 | . 8 6 10 5 7 Melee 6 | . . . . . 6 Guns 12 | . 8 3 . . 1 Cannons 4 | . . . 2 2 . AOE 13 | . . 2 8 3 . Classes Destroyed 11 | . 2 1 5 3 . Worker 6 | . . . 3 1 2 Builder 3 | . . . 2 . 1 Hauler 1 | . . . 1 . . Recycler 2 | . . . 1 . 1 Operator 1 | . . . . 1 . Watcher 2 | . 1 . 1 . . Grunt 28 | . 8 5 8 3 4 Duelist 1 | . . . . 1 . Sentry 3 | . . 1 1 . 1 Hunter 1 | . . . 1 . . Programmer 3 | . . . . 1 2 Best Kill Streak 5 | . 4 3 5 3 2 Combat Bots Only 4 | . 4 3 3 3 2 Max Kills in Single Turn 3 | . 1 2 3 3 1 Gunslinging . | . . . . . . Exploded 3 | . . 2 2 3 . Melee 1 | . . . . . 1 Uniques/NPCs Destroyed . | . . . . . . Combat | -11 -10 -9 -8 -7 -7 -------- Run | Yrd Mat Mat Mat Fac Sto Hostile Shots Fired 540 | . 59 24 73 133 251 Missed 148 | . 12 5 16 40 75 Hits 392 | . 47 19 57 93 176 Projectile 392 | . 47 19 57 93 176 Critical Strikes 13 | . . . 2 3 8 Damage Taken 4963 | . 588 226 987 1304 1858 Core 826 | . 71 23 28 194 510 Absorbed by Shields 33 | . . . . 33 . Redirected to Shielding 50 | . 16 5 6 23 . Ignored by Resistances 34 | . . . . . 34 Regen/Repaired (Parts) 64 | . 64 . . . . Core Remaining (%) 89 | 100 71 94 94 . . Volleys Fired 128 | . 27 13 29 24 35 Largest 3 | . 2 3 3 3 1 Hottest 126 | . 100 120 126 120 40 Shots Fired 237 | . 53 37 57 55 35 Gun 131 | . 53 35 19 1 23 Cannon 81 | . . . 15 54 12 Launcher 25 | . . 2 23 . . Special . | . . . . . . Kinetic 144 | . 13 13 29 54 35 Thermal 67 | . 40 22 5 . . Explosive 13 | . . 2 11 . . Electromagnetic 13 | . . . 12 1 . Robot Hit Streak 11 | . 7 10 7 5 11 Robot Miss Streak 7 | . 2 3 4 7 4 Penetration Max . | . . . . . . Secondary Targets 1 | . . 1 . . . Max Gunslinging Chain 1 | . . 1 . . . Shots Hit Robots 175 | . 36 25 34 27 53 Core Hits 87 | . 18 9 30 9 21 Critical Kills . | . . . . . . Critical Parts Destroyed . | . . . . . . Critical Strikes 22 | . 4 1 5 7 5 Burn 6 | . 4 1 1 . . Blast 11 | . . . 4 7 . Sever 5 | . . . . . 5 Melee Attacks 32 | . . . . . 32 Impact . | . . . . . . Slashing 32 | . . . . . 32 Piercing . | . . . . . . Sneak Attacks 5 | . . . . . 5 Combat Hostiles . | . . . . . . Follow-up Attacks . | . . . . . . Damage Inflicted 6097 | . 455 525 2054 1211 1852 Guns 1260 | . 453 314 103 . 390 Cannons 1291 | . . . 274 821 196 Explosions 2273 | . . 211 1672 390 . Melee 1266 | . . . . . 1266 Ramming 7 | . 2 . 5 . . Kinetic 1959 | . 111 102 339 821 586 Thermal 703 | . 342 212 149 . . Explosive 1560 | . . 211 959 390 . Electromagnetic 602 | . . . 602 . . Impact . | . . . . . . Slashing 1266 | . . . . . 1266 Piercing . | . . . . . . Highest Corruption 12 | . . . 1 4 12 Average Corruption 3 | . . . 1 3 6 Corruption Purged . | . . . . . . Corruption Blocked . | . . . . . . Effects 22 | . . . 3 7 12 Message Errors 6 | . . . 1 3 2 Matter Fused 5 | . . . . 2 3 Heat Flow Errors 3 | . . . 1 1 1 Energy Discharges 2 | . . . . 1 1 Data Loss (minor) 4 | . . . 1 . 3 Data Loss (major) 2 | . . . . . 2 Overload Shots . | . . . . . . Overflow Damage 272 | . . 9 44 69 150 Projectiles 12 | . . . 6 6 . Explosions 110 | . . 9 38 63 . Melee 150 | . . . . . 150 Knockbacks 27 | . . . 6 17 4 Impact . | . . . . . . Kinetic 25 | . . . 6 16 3 Secondary 2 | . . . . 1 1 Self-Inflicted Damage 368 | . . . 257 111 . Shots 12 | . . . 11 1 . Rammed 2 | . 1 . 1 . . Targets Rammed 2 | . 1 . 1 . . Kicked . | . . . . . . Crushed . | . . . . . . Highest Temperature 532 | . 321 389 372 532 401 Average Temperature 145 | . 77 172 98 191 186 Received Heat Transfer 1902 | . 330 102 369 450 651 Effects 23 | . 1 2 4 13 3 Shutdowns 9 | . . . 1 7 1 Energy Bleed 3 | . 1 . . 2 . Interference 7 | . . . 3 2 2 Matter Decay 3 | . . 2 . 1 . Damage (core) 1 | . . . . 1 . Siege Activations . | . . . . . . Martial Activations . | . . . . . . Shielding Activations . | . . . . . . Robots Disrupted . | . . . . . . Combat Hostiles . | . . . . . . Robots Corrupted . | . . . . . . Combat Hostiles . | . . . . . . Parts Fried . | . . . . . . Impact Corruptions . | . . . . . . Robots Melted 1 | . . 1 . . . Combat Hostiles 1 | . . 1 . . . Parts Melted 5 | . 2 3 . . . Heat Transferred 2320 | . 1332 703 285 . . Parts Sabotaged . | . . . . . . Parts Stolen . | . . . . . . Parts Stripped . | . . . . . . Power Chain Reactions 3 | . . . 3 . . Alert | -11 -10 -9 -8 -7 -7 ------- Run | Yrd Mat Mat Mat Fac Sto Maximum Alert Level . | . . . . . . Low Security (%) 100 | 100 100 100 100 100 100 Level 1 . | . . . . . . Level 2 . | . . . . . . Level 3 . | . . . . . . Level 4 . | . . . . . . Level 5 . | . . . . . . High Security . | . . . . . . Max Security . | . . . . . . Peak Influence 186 | . 125 88 186 106 50 Initial 39 | . . 24 . 39 . Average 25 | . 7 21 56 16 10 Influence Increases 1371 | . 257 168 488 217 241 Destroy 0b10 Robot/C 720 | . 160 120 200 100 140 Destroy 0b10 Robot/NC 80 | . 5 . 40 10 25 Destroy Leader 186 | . 42 30 44 30 40 Successful Hack 21 | . 5 . 13 . 3 Disable Machine 165 | . . . 90 45 30 Destroy Structure 139 | . . 18 86 32 3 Partial Spotted 15 | . . . 15 . . Lose Combat Pursuer 45 | . 45 . . . . Influence Decreases 1371 | . 199 226 400 305 241 Entered New Map 83 | . . 34 . 49 . Time Decay 990 | . 84 182 339 245 140 Lost Part 183 | . . 10 61 11 101 Purge Threat 115 | . 115 . . . . Squads Dispatched 13 | . 3 2 3 2 3 Investigation 9 | . 3 2 2 . 2 Extermination 2 | . . . . 1 1 Reinforcement 2 | . . . 1 1 . Assault . | . . . . . . Garrison . | . . . . . . Intercept . | . . . . . . Searches Triggered . | . . . . . . Construction Impeded 1 | . . . 1 . . Haulers Reinforced . | . . . . . . Active Scanning Responses . | . . . . . . Cargo Convoy Interrupts . | . . . . . . Stealth | -11 -10 -9 -8 -7 -7 --------- Run | Yrd Mat Mat Mat Fac Sto Distress Signals 4 | . 1 1 1 . 1 Communications Jammed . | . . . . . . Distress Signals . | . . . . . . Times Spotted 90 | . 19 9 28 18 16 Peak Tracking Total 5 | . 5 5 4 4 4 Tactical Retreats 20 | . 2 2 8 6 2 ECM-based Alert Blocks 34 | . 1 3 15 11 4 Traps | -11 -10 -9 -8 -7 -7 ------- Run | Yrd Mat Mat Mat Fac Sto Traps Triggered 2 | . 1 . 1 . . Indirectly . | . . . . . . Trap Hack Attempts . | . . . . . . Triggered . | . . . . . . Disarmed . | . . . . . . Reprogrammed . | . . . . . . Reused . | . . . . . . Traps Extracted . | . . . . . . Installed . | . . . . . . Triggered . | . . . . . . Machines | -11 -10 -9 -8 -7 -7 ---------- Run | Yrd Mat Mat Mat Fac Sto Machines Disabled 11 | . . . 6 3 2 Max in Single Turn 2 | . . . 2 1 1 Machines Repaired . | . . . . . . Machines Dismantled . | . . . . . . Machines Sabotaged . | . . . . . . Overloaded Fab Kills . | . . . . . . Hacking | -11 -10 -9 -8 -7 -7 --------- Run | Yrd Mat Mat Mat Fac Sto Machines Accessed 10 | . 3 2 2 . 3 Terminals 8 | . 2 2 2 . 2 Fabricators . | . . . . . . Repair Stations 1 | . 1 . . . . Recycling Units . | . . . . . . Scanalyzers . | . . . . . . Garrison Access 1 | . . . . . 1 Total Hacks 36 | . 14 8 8 . 6 Successful 15 | . 7 3 3 . 2 Failed 20 | . 6 5 5 . 4 Catastrophic 5 | . 2 1 1 . 1 Database Lockouts 1 | . 1 . . . . Manual 11 | . 6 . 5 . . Terminals 28 | . 9 8 8 . 3 Fabricators . | . . . . . . Repair Stations 5 | . 5 . . . . Recycling Units . | . . . . . . Scanalyzers . | . . . . . . Garrison Access 3 | . . . . . 3 Terminal Hacks 11 | . 3 3 3 . 2 Record 5 | . 2 3 . . . Part Schematic 1 | . . . 1 . . Robot Analysis 1 | . . . 1 . . Open Door 2 | . . . . . 2 Alert Level 1 | . . . 1 . . Unreport Threat 1 | . 1 . . . . Fabricator Hacks . | . . . . . . Repair Station Hacks 4 | . 4 . . . . Scan Component 2 | . 2 . . . . Repair 2 | . 2 . . . . Recycling Unit Hacks . | . . . . . . Scanalyzer . | . . . . . . Garrison Access Hacks . | . . . . . . Unauthorized Hacks . | . . . . . . Terminals . | . . . . . . Fabricators . | . . . . . . Repair Stations . | . . . . . . Recycling Units . | . . . . . . Scanalyzers . | . . . . . . Garrison Access . | . . . . . . Data Cores Recovered . | . . . . . . Used . | . . . . . . Hacking Detections 10 | . 4 2 2 . 2 Full Trace Events 9 | . 3 2 2 . 2 Feedback Events . | . . . . . . Feedback Blocked . | . . . . . . Robot Schematics Acquired . | . . . . . . Robots Built . | . . . . . . Authchips . | . . . . . . Time . | . . . . . . Total Robot Build Rating . | . . . . . . Part Schematics Acquired 1 | . . . 1 . . Parts Built . | . . . . . . Authchips . | . . . . . . Time . | . . . . . . Total Part Build Rating . | . . . . . . Part Studies Acquired . | . . . . . . Parts Repaired 2 | . 2 . . . . Time 64 | . 64 . . . . Parts Recycled . | . . . . . . Recycled Matter . | . . . . . . Retrieved Matter . | . . . . . . Retrieved Components . | . . . . . . Parts Scanalyzed . | . . . . . . Part Schematics Acquired . | . . . . . . Parts Damaged . | . . . . . . Bothacking | -11 -10 -9 -8 -7 -7 ------------ Run | Yrd Mat Mat Mat Fac Sto Used RIF Installer . | . . . . . . Robots Hacked . | . . . . . . Non-combat . | . . . . . . Combat . | . . . . . . Robot Hacks Applied . | . . . . . . Relay Couplers Released . | . . . . . . Fabnet Peak Effective % . | . . . . . . Robots Rewired . | . . . . . . Allies Hacked . | . . . . . . Hacks Repelled . | . . . . . . Allies | -11 -10 -9 -8 -7 -7 -------- Run | Yrd Mat Mat Mat Fac Sto Total Allies . | . . . . . . Largest Group . | . . . . . . Highest-Rated Group . | . . . . . . Highest-Rated Ally . | . . . . . . Total Orders . | . . . . . . Ally Attacks . | . . . . . . Total Damage . | . . . . . . Kills . | . . . . . . Allies Corrupted . | . . . . . . Allies Melted . | . . . . . . Intel | -11 -10 -9 -8 -7 -7 ------- Run | Yrd Mat Mat Mat Fac Sto Active Infowar (turns) 3678 | . 568 475 1248 1040 347 Traps 347 | . . . . . 347 ECM 3495 | . 568 475 1248 1040 164 Robot Analysis Total 1 | . . . 1 . . Derelict Logs Recovered . | . . . . . . Drone Launches . | . . . . . . Drone Recoveries . | . . . . . . Exploration | -11 -10 -9 -8 -7 -7 ------------- Run | Yrd Mat Mat Mat Fac Sto Turns Passed 4633 | 66 877 545 1248 1264 633 Spaces Moved 1776 | 40 369 230 450 444 243 Core 110 | 6 . . . 92 12 Treads 1287 | 34 369 230 450 160 44 Legs . | . . . . . . Wheels 208 | . . . . 192 16 Hover 171 | . . . . . 171 Flight . | . . . . . . Fastest Speed 42 | 50 160 160 152 80 42 Average Speed 179 | 143 160 160 160 253 132 Slowest Speed 1000 | 160 160 160 232 1000 250 Overloaded Moves . | . . . . . . Propulsion Burnouts . | . . . . . . Robots Hopped . | . . . . . . Potential Cave-ins . | . . . . . . Cave-ins Triggered . | . . . . . . Exploration Rate (%) 23 | 3 49 23 21 9 38 Regions Visited 5 Branch Regions 1 Pre-discovered Areas . | . . . . . . Known Exits Taken . | . . . . . . Unknown Exits Taken 5 | 1 1 1 1 1 . Scrap Searched . | . . . . . . Spaces Dug . | . . . . . . Terrain Destroyed 170 | . . 18 114 35 3 Melee . | . . . . . . Projectile 19 | . . . 5 11 3 AOE 151 | . . 18 109 24 . Terrain Rammed . | . . . . . . Walls Destroyed . | . . . . . . Machines Disabled . | . . . . . . Actions | -11 -10 -9 -8 -7 -7 --------- Run | Yrd Mat Mat Mat Fac Sto Total 2938 | 46 600 377 920 533 462 Wait 921 | 1 190 127 424 49 130 Move 1771 | 39 368 229 449 443 243 Hop . | . . . . . . Pick Up 16 | 1 7 2 3 1 2 Fast Attach 38 | 5 3 2 6 11 11 Attach 10 | . 1 3 2 . 4 Detach . | . . . . . . Swap 9 | . 2 1 4 2 . Drop 11 | . 1 . 2 3 5 Fire 128 | . 27 13 29 24 35 Melee 32 | . . . . . 32 Ram . | . . . . . . Kick . | . . . . . . Crush 2 | . 1 . 1 . . Escape Stasis . | . . . . . . Rewire . | . . . . . . Trap . | . . . . . . Miscellaneous . | . . . . . . Route ------- -11/Scrapyard -10/Materials -9/Materials -8/Materials -7/Factory -7/Storage History --------- Turn | Location | Event 2 | -11/Scrapyard | Met Revision 17 8 | -11/Scrapyard | Discovered new exit (range 16) 67 | -11/Scrapyard | Entered Materials 281 | -10/Materials | Central database locked down 318 | -10/Materials | Build established: Mutant 763 | -10/Materials | Repaired Imp. Heat Sink 790 | -10/Materials | Repaired Med. Laser 889 | -10/Materials | Discovered new exit (range 14) 944 | -10/Materials | Entered another Materials area 944 | -9/Materials | Evolved 2 slots: Utility x1, Weapon x1 1475 | -9/Materials | Discovered new exit (range 6) 1489 | -9/Materials | Entered another Materials area 1489 | -8/Materials | Evolved 2 slots: Power x1, Propulsion x1 1518 | -8/Materials | Build established: Tank 1936 | -8/Materials | Lost 3 parts (1n2w) 2263 | -8/Materials | Build established: Mutant 2609 | -8/Materials | Discovered new exit (range 9) 2737 | -8/Materials | Entered Factory 2737 | -7/Factory | Evolved 2 slots: Power x1, Utility x1 2889 | -7/Factory | Build established: Tank 3606 | -7/Factory | Lost 3 parts (1p2u) 3748 | -7/Factory | Lost 4 parts (2p2w) 3920 | -7/Factory | Discovered new exit (range 5) 3982 | -7/Factory | Build established: Mutant 4001 | -7/Factory | Entered Storage 4324 | -7/Storage | Lost 5 parts (2p1n1u1w) 4491 | -7/Storage | Core integrity fell below 50% 4516 | -7/Storage | System corruption reached 10% 4534 | -7/Storage | Lost 7 parts (2p2n2u1w) 4621 | -7/Storage | Core integrity fell below 20% 4634 | -7/Storage | Destroyed by Y-54 Guardian with Flak Gun Last Messages --------------- P-60 Hacker destroyed. Acquired 33 matter. System corrupted: Component data lost. Acquired Remote Datajack. Connecting with Door Terminal... [Achievement: Novice Programmer] >>Open(Door) Sealed Heavy Doors opened. ALERT: Suspicious activity at Terminal S009. Dispatching Investigation squad. System corrupted: Matter fused (-7). Lgt. Treads destroyed. System corrupted: Heat flow error (+294). Great Axe destroyed. Flak Gun destroyed. Remote Datajack destroyed. Acquired Plasma Cannon. Trap Scanner destroyed. K%MMZ=,&CVWXYE8IT64RC|C6 O|HZH<:H,HT5JW2 Acquired Plasma Cannon. Map ----- +----------------------------------------------------+ | ????????????????????#% "" # #?# #?????? | | ????????????????????# ! # ######+###+#######? | | ????????????????????####+##### + ! #? | | ???????????????????????# ##### # #? | | ???????????????????????# # ] #? | | ???????????????????????# ########### # #? | | ???????????????????????# #?????????# + ! #? | | ?????????????????#####?# #?????????# # [ #? | | ?????????????????# ###/#######???# # ] #? | | ?????????????????# # #???# # ! #? | | ?????????????????# #= """" #???# # #? | | ?????????????????# ![#% "??" #???# ##########? | | ?????????????????# ! #[="??" #???# #?????????? | | ?????????????????# !!+%%"??" #???# #?????????? | | ?????????????????# ! #[*"??" #???# #?????????? | | ?????????????????# #% """" #???# #?????????? | | ??????????#####??# # #???# #?????????? | | ?????????#"""""### ###########???# #?????????? | | ?????????#""T""# # ##########????# #?????????? | | ????????# # # """ #????# #?????????? | | ???????## """ " # # ""R" #????# #?????????? | | ???????#" "" T # # "" " #????# ########### | | ???????#T """ " # gg# #????# # | | ???????#" + Y == #????# # | | ????????# """ # # = #????# # | | ????????# """ # g @= ]#????######+#### # | | ????????# """ # # #?????????# ## # | | ????????# + # #????????# T# # | | ????????###########+############????????# ## # | | ???????????????## #???????????????????# =## # | | ???????????????#T #???????????????????# =## # | | ???????????????## #???????????????????# !=## # | | ????????????????#! !#???????????????????#= =###### | | ????????????????#! !#???????????????????#####????? | | ????????????????#! !#????????????????????????????? | | ????????????????#! !#????????????????????????????? | | ????????????????#####????????????????????????????? | | ?????????????????????????????????????????????????? | | ?????????????????????????????????????????????????? | | ?????????????????????????????????????????????????? | | ?????????????????????????????????????????????????? | | ?????????????????????????????????????????????????? | | ?????????????????????????????????????????????????? | | ?????????????????????????????????????????????????? | | | | | | | | | | | | | +----------------------------------------------------+ Best States ------------- Heat Dissipation 45 Energy Generation 36 Energy Capacity 390 Matter Stores 300 Matter Capacity 300 Sight Range 16 Terrain Scan Density 10 ECM Strength 2 Armor Coverage 450 Resistance: EM 20 Core Shielding 20 Evasion (%) 55 Recoil Reduction 3 Offensive Hacking 10 Item Schematics ----------------- Imp. Treads | -8/Materials | Hacked Robot Schematics ------------------ None Fabricated ------------ Nothing Repaired ---------- Imp. Heat Sink | 67% | -10/Materials Med. Laser | 27% | -10/Materials Studied --------- None Alien Tech Used ----------------- None Achievements -------------- Bumper Bots It's Just You Novice Programmer Oops Well Done You Again Challenges ------------ None Game ------ Seed CoordinationPotentialChip Manual? 0 Play Time 01:00:16 Cumulative 4.7 hours Start 2025.11.14 @ 01:02:21 End 2025.11.14 @ 02:01:09 Sessions 3 Manual Loads 0 Difficulty Rogue Special Mode None Game No. 7 Rogue 7 Adventurer 0 Explorer 0 Win Type - Total 0 Types 0/0/0/0/0/0/0/0/0/0 Lore% 1 Gallery% 6 Achievement% 6 Wizard Run 0 Options --------- Layout 1 ASCII 0 Keyboard 0 Movement Mouse Keybinds 0 Fullscreen 1 Font 32/SmallcapsGlow Map View 25x17 Zoom Use 92% Tactical HUD 0 Map Filters NONE Filters NONE Steam 1 RUN: fb9005c9-85be-4c3f-b16a-e8bae946d83c